[Event "Late-Titled-Tuesday-Blitz-October-17-2023"]
[Site "Chess.com"]
[Date "2023.10.17"]
[Round "5"]
[White "ferdipy"]
[Black "sjoerd893"]
[Result "0-1"]
[WhiteElo "2371"]
[BlackElo "2534"]
[TimeControl "180+1"]
[EndTime "14:55:30 PDT"]
[Termination "sjoerd893 won by resignation"]

1. e4 {[%clk 0:01:18.3]} 1... c5 {[%clk 0:02:57.3]} 2. d4 {[%clk 0:01:18.3]}
2... cxd4 {[%clk 0:02:57.4]} 3. c3 {[%clk 0:01:18.7]} 3... dxc3 {[%clk
0:02:58.3]} 4. Nxc3 {[%clk 0:01:19.3]} 4... e6 {[%clk 0:02:58]} 5. Bc4 {[%clk
0:01:20.2]} 5... a6 {[%clk 0:02:58.3]} 6. Nf3 {[%clk 0:01:20.8]} 6... Nc6 {[%clk
0:02:58.9]} 7. Bb3 {[%clk 0:01:21.4]} 7... Nge7 {[%clk 0:02:58.5]} 8. Qe2 {[%clk
0:01:21.8]} 8... Ng6 {[%clk 0:02:56.7]} 9. O-O {[%clk 0:01:22.3]} 9... Be7
{[%clk 0:02:55.5]} 10. Rd1 {[%clk 0:01:23]} 10... O-O {[%clk 0:02:55.2]} 11. Be3
{[%clk 0:01:23.6]} 11... d6 {[%clk 0:02:51.6]} 12. Rac1 {[%clk 0:01:24.2]} 12...
Bd7 {[%clk 0:02:49.6]} 13. h4 {[%clk 0:01:24.4]} 13... Rc8 {[%clk 0:02:28.8]}
14. h5 {[%clk 0:01:20.6]} 14... Nge5 {[%clk 0:02:27.8]} 15. Nd4 {[%clk
0:01:20.5]} 15... Nxd4 {[%clk 0:02:20.6]} 16. Bxd4 {[%clk 0:01:21.4]} 16... Bg5
{[%clk 0:02:08.9]} 17. Rc2 {[%clk 0:01:10.9]} 17... Nc6 {[%clk 0:02:01.5]} 18.
Be3 {[%clk 0:01:02.5]} 18... Bxe3 {[%clk 0:02:00.4]} 19. Qxe3 {[%clk 0:01:03.4]}
19... Qe7 {[%clk 0:02:00.7]} 20. Rcd2 {[%clk 0:01:03.2]} 20... Na5 {[%clk
0:01:53.3]} 21. Rxd6 {[%clk 0:01:00.9]} 21... Bc6 {[%clk 0:01:53.4]} 22. h6
{[%clk 0:00:54]} 22... g6 {[%clk 0:01:42.8]} 23. Qd4 {[%clk 0:00:35.5]} 23... e5
{[%clk 0:01:41.2]} 24. Qb6 {[%clk 0:00:31.5]} 24... Nxb3 {[%clk 0:01:37]} 25.
Qxb3 {[%clk 0:00:32.4]} 25... Qg5 {[%clk 0:01:34.5]} 26. Nd5 {[%clk 0:00:23]}
26... Bxd5 {[%clk 0:01:33.6]} 27. Qxd5 {[%clk 0:00:23.2]} 27... Qxh6 {[%clk
0:01:30.8]} 28. Qxe5 {[%clk 0:00:23.5]} 28... Rce8 {[%clk 0:01:23.8]} 29. Qf6
{[%clk 0:00:23.7]} 29... Rxe4 {[%clk 0:01:17.5]} 30. Rd7 {[%clk 0:00:24.1]}
30... Re6 {[%clk 0:01:12.4]} 31. Qf3 {[%clk 0:00:23]} 31... b5 {[%clk 0:01:07]}
32. g3 {[%clk 0:00:21.5]} 32... Qg5 {[%clk 0:01:01.8]} 33. Kg2 {[%clk
0:00:20.2]} 33... Qf6 {[%clk 0:00:57.9]} 34. Qb7 {[%clk 0:00:19.6]} 34... Qxb2
{[%clk 0:00:50.7]} 35. Rxf7 {[%clk 0:00:16.4]} 35... Rxf7 {[%clk 0:00:49.3]} 36.
Qc8+ {[%clk 0:00:16.8]} 36... Kg7 {[%clk 0:00:47.2]} 37. Qxe6 {[%clk 0:00:17.4]}
37... Rxf2+ {[%clk 0:00:37.7]} 38. Kh3 {[%clk 0:00:17.8]} 38... Rh2+ {[%clk
0:00:37.2]} 39. Kg4 {[%clk 0:00:18.4]} 39... Qe2+ {[%clk 0:00:27.4]} 40. Qxe2
{[%clk 0:00:18.9]} 40... Rxe2 {[%clk 0:00:28.1]} 41. a3 {[%clk 0:00:18.2]} 41...
Re3 {[%clk 0:00:27.7]} 42. Ra1 {[%clk 0:00:18.3]} 42... Re4+ {[%clk 0:00:26.4]}
43. Kf3 {[%clk 0:00:18.4]} 43... Ra4 {[%clk 0:00:27.3]} 44. Rd1 {[%clk
0:00:13.3]} 44... Rxa3+ {[%clk 0:00:27.1]} 45. Kf4 {[%clk 0:00:14.2]} 45... b4
{[%clk 0:00:27.4]} 46. Rd7+ {[%clk 0:00:14.3]} 46... Kh6 {[%clk 0:00:27.1]} 47.
Rb7 {[%clk 0:00:15.2]} 47... a5 {[%clk 0:00:26.8]} 48. g4 {[%clk 0:00:15.9]}
48... g5+ {[%clk 0:00:21.6]} 49. Kf5 {[%clk 0:00:15.7]} 49... Rf3+ {[%clk
0:00:21.6]} 50. Ke5 {[%clk 0:00:16.2]} 50... Rf4 {[%clk 0:00:20.6]} 51. Rb6+
{[%clk 0:00:15.1]} 51... Kg7 {[%clk 0:00:21]} 52. Rb7+ {[%clk 0:00:15.4]} 52...
Rf7 {[%clk 0:00:17.4]} 53. Rb5 {[%clk 0:00:14.2]} 53... Ra7 {[%clk 0:00:16.3]}
54. Kf5 {[%clk 0:00:14.5]} 54... a4 {[%clk 0:00:16.4]} 55. Rxb4 {[%clk 0:00:14]}
55... a3 {[%clk 0:00:17.1]} 56. Rb1 {[%clk 0:00:14.9]} 56... a2 {[%clk
0:00:17.5]} 57. Ra1 {[%clk 0:00:15.8]} 57... h6 {[%clk 0:00:17.7]} 58. Ke4
{[%clk 0:00:15.2]} 58... Kg6 {[%clk 0:00:18.2]} 59. Kd3 {[%clk 0:00:14.9]} 59...
Kf6 {[%clk 0:00:18.8]} 60. Kc2 {[%clk 0:00:15.5]} 60... Ke5 {[%clk 0:00:19.3]}
61. Kb2 {[%clk 0:00:16.4]} 61... Kf4 {[%clk 0:00:19.3]} 62. Rf1+ {[%clk
0:00:17]} 62... Kxg4 {[%clk 0:00:19.8]} 0-1

[Event "Late-Titled-Tuesday-Blitz-October-17-2023"]
[Site "Chess.com"]
[Date "2023.10.17"]
[Round "5"]
[White "Mariia89"]
[Black "egnfanclub"]
[Result "1-0"]
[WhiteElo "2114"]
[BlackElo "2356"]
[TimeControl "180+1"]
[EndTime "14:55:31 PDT"]
[Termination "Mariia89 won by resignation"]

1. d4 {[%clk 0:03:00]} 1... d5 {[%clk 0:02:55]} 2. c4 {[%clk 0:03:00.2]} 2... c6
{[%clk 0:02:54.4]} 3. e3 {[%clk 0:03:00.3]} 3... Nf6 {[%clk 0:02:55.1]} 4. Nc3
{[%clk 0:03:00.7]} 4... e6 {[%clk 0:02:55.8]} 5. Bd3 {[%clk 0:03:00.2]} 5...
dxc4 {[%clk 0:02:55.6]} 6. Bxc4 {[%clk 0:03:00.7]} 6... b5 {[%clk 0:02:56.2]} 7.
Bd3 {[%clk 0:03:00.6]} 7... Nbd7 {[%clk 0:02:56.4]} 8. e4 {[%clk 0:03:00.3]}
8... a6 {[%clk 0:02:53.5]} 9. Bg5 {[%clk 0:03:00]} 9... h6 {[%clk 0:02:50.1]}
10. Bh4 {[%clk 0:03:00.3]} 10... g5 {[%clk 0:02:39]} 11. Bg3 {[%clk 0:03:00.1]}
11... b4 {[%clk 0:02:39.6]} 12. Na4 {[%clk 0:02:59.3]} 12... Bb7 {[%clk
0:02:35.1]} 13. Rc1 {[%clk 0:02:49.1]} 13... c5 {[%clk 0:02:18]} 14. dxc5 {[%clk
0:02:48.3]} 14... Bxe4 {[%clk 0:02:12.2]} 15. Bxe4 {[%clk 0:02:35.7]} 15... Nxe4
{[%clk 0:02:12.4]} 16. c6 {[%clk 0:02:07.6]} 16... Ndc5 {[%clk 0:02:08.7]} 17.
Nxc5 {[%clk 0:01:53.9]} 17... Nxc5 {[%clk 0:01:55.6]} 18. Qxd8+ {[%clk
0:01:09.9]} 18... Rxd8 {[%clk 0:01:56.5]} 19. Ke2 {[%clk 0:01:06.9]} 19... Ne4
{[%clk 0:01:28.2]} 20. Rc2 {[%clk 0:00:59.4]} 20... Bd6 {[%clk 0:01:08]} 21. Nf3
{[%clk 0:00:44.2]} 21... Nxg3+ {[%clk 0:00:59.2]} 22. hxg3 {[%clk 0:00:44.5]}
22... Ke7 {[%clk 0:00:57]} 23. c7 {[%clk 0:00:21.1]} 23... Rc8 {[%clk
0:00:54.9]} 24. Rc6 {[%clk 0:00:17.7]} 24... a5 {[%clk 0:00:50.3]} 25. Nxg5
{[%clk 0:00:16.2]} 25... Bxc7 {[%clk 0:00:32.5]} 26. Ne4 {[%clk 0:00:13.3]}
26... Be5 {[%clk 0:00:27.5]} 27. Rhc1 {[%clk 0:00:12.5]} 27... Rxc6 {[%clk
0:00:23.3]} 28. Rxc6 {[%clk 0:00:13.4]} 28... Bxb2 {[%clk 0:00:23.7]} 29. Rc7+
{[%clk 0:00:13.3]} 29... Kd8 {[%clk 0:00:23]} 30. Ra7 {[%clk 0:00:13]} 30... f5
{[%clk 0:00:19.5]} 31. Nd6 {[%clk 0:00:10]} 31... Rg8 {[%clk 0:00:14.4]} 32.
Nf7+ {[%clk 0:00:07.5]} 32... Kc8 {[%clk 0:00:14]} 33. Ra8+ {[%clk 0:00:06.4]}
33... Kd7 {[%clk 0:00:12]} 34. Rxg8 {[%clk 0:00:07]} 34... a4 {[%clk 0:00:11]}
35. Nxh6 {[%clk 0:00:07.5]} 35... b3 {[%clk 0:00:10.5]} 36. axb3 {[%clk
0:00:07.7]} 36... a3 {[%clk 0:00:11.1]} 37. Ra8 {[%clk 0:00:07.9]} 37... Kc6
{[%clk 0:00:10.7]} 38. g4 {[%clk 0:00:08.1]} 38... fxg4 {[%clk 0:00:10.1]} 39.
Nxg4 {[%clk 0:00:08]} 39... Kd5 {[%clk 0:00:11]} 40. Ne3+ {[%clk 0:00:08.4]}
40... Kd4 {[%clk 0:00:10.7]} 41. Nc2+ {[%clk 0:00:08.6]} 41... Kc3 {[%clk
0:00:10.1]} 42. Nxa3 {[%clk 0:00:08.9]} 42... Kxb3 {[%clk 0:00:10.9]} 43. Nb5
{[%clk 0:00:09.8]} 43... Kc4 {[%clk 0:00:10.6]} 44. Nc7 {[%clk 0:00:10.3]} 44...
e5 {[%clk 0:00:08.5]} 45. g4 {[%clk 0:00:11]} 1-0

[Event "Late-Titled-Tuesday-Blitz-October-17-2023"]
[Site "Chess.com"]
[Date "2023.10.17"]
[Round "5"]
[White "scandalgod"]
[Black "Rodalquilar"]
[Result "0-1"]
[WhiteElo "2492"]
[BlackElo "2770"]
[TimeControl "180+1"]
[EndTime "14:55:34 PDT"]
[Termination "Rodalquilar won by resignation"]

1. d4 {[%clk 0:03:00.9]} 1... d5 {[%clk 0:02:59.2]} 2. c4 {[%clk 0:03:00.5]}
2... e6 {[%clk 0:02:59.5]} 3. Nf3 {[%clk 0:03:00.1]} 3... Nf6 {[%clk 0:02:58.2]}
4. g3 {[%clk 0:02:59.1]} 4... Be7 {[%clk 0:02:58.3]} 5. Bg2 {[%clk 0:02:58.2]}
5... O-O {[%clk 0:02:58.6]} 6. O-O {[%clk 0:02:57.4]} 6... dxc4 {[%clk
0:02:58.8]} 7. Ne5 {[%clk 0:02:56.5]} 7... Qd6 {[%clk 0:02:58]} 8. Nxc4 {[%clk
0:02:55.2]} 8... Qa6 {[%clk 0:02:58.2]} 9. Qc2 {[%clk 0:02:42.2]} 9... Rd8
{[%clk 0:02:56.3]} 10. Rd1 {[%clk 0:02:35.4]} 10... Nc6 {[%clk 0:02:52.6]} 11.
Be3 {[%clk 0:02:21.8]} 11... Nd5 {[%clk 0:02:34.4]} 12. Nba3 {[%clk 0:02:03]}
12... b5 {[%clk 0:02:04.7]} 13. Nd2 {[%clk 0:01:13.8]} 13... Ncb4 {[%clk
0:01:57.3]} 14. Qb3 {[%clk 0:01:03.8]} 14... Bb7 {[%clk 0:01:57.5]} 15. Ne4
{[%clk 0:00:57.2]} 15... Nxe3 {[%clk 0:01:50.9]} 16. Qxe3 {[%clk 0:00:54.7]}
16... Bd5 {[%clk 0:01:25.8]} 17. Nc5 {[%clk 0:00:35]} 17... Qc6 {[%clk
0:01:25.4]} 18. Bxd5 {[%clk 0:00:33.2]} 18... Rxd5 {[%clk 0:00:48.9]} 19. Ne4
{[%clk 0:00:28.9]} 19... Rad8 {[%clk 0:00:42.3]} 20. Nc3 {[%clk 0:00:29]} 20...
Rh5 {[%clk 0:00:36.6]} 21. Rac1 {[%clk 0:00:28.5]} 21... Qb7 {[%clk 0:00:31.8]}
22. Qe4 {[%clk 0:00:23.3]} 22... Nd5 {[%clk 0:00:30]} 23. Nxd5 {[%clk
0:00:21.7]} 23... Rhxd5 {[%clk 0:00:29.8]} 24. e3 {[%clk 0:00:20.5]} 24... c5
{[%clk 0:00:26.6]} 25. Nc2 {[%clk 0:00:16.7]} 25... c4 {[%clk 0:00:24.4]} 26.
Qf3 {[%clk 0:00:15.4]} 26... a5 {[%clk 0:00:20.7]} 27. Kg2 {[%clk 0:00:14.1]}
27... h5 {[%clk 0:00:18.2]} 28. h4 {[%clk 0:00:13.8]} 28... R8d7 {[%clk
0:00:18.5]} 29. e4 {[%clk 0:00:14]} 29... R5d6 {[%clk 0:00:18]} 30. Re1 {[%clk
0:00:14.3]} 30... g6 {[%clk 0:00:13]} 31. Rcd1 {[%clk 0:00:14.4]} 31... b4
{[%clk 0:00:12.9]} 32. d5 {[%clk 0:00:14.3]} 32... exd5 {[%clk 0:00:12.4]} 33.
e5 {[%clk 0:00:13.7]} 33... Rb6 {[%clk 0:00:07.2]} 34. Nd4 {[%clk 0:00:13.9]}
34... Rd8 {[%clk 0:00:06.3]} 35. e6 {[%clk 0:00:14.2]} 35... f6 {[%clk
0:00:06.9]} 36. Qf4 {[%clk 0:00:13.3]} 36... Kg7 {[%clk 0:00:06.2]} 37. Nf3
{[%clk 0:00:12.2]} 37... Qb8 {[%clk 0:00:06.3]} 38. Qe3 {[%clk 0:00:11.8]} 38...
d4 {[%clk 0:00:05.1]} 39. Rxd4 {[%clk 0:00:10.8]} 39... Rxd4 {[%clk 0:00:04.9]}
40. Qxd4 {[%clk 0:00:10.5]} 40... Qc7 {[%clk 0:00:02.8]} 41. Qd7 {[%clk
0:00:10.3]} 41... Rb7 {[%clk 0:00:02.4]} 42. Rd1 {[%clk 0:00:10.2]} 42... c3
{[%clk 0:00:02]} 43. bxc3 {[%clk 0:00:09.7]} 43... bxc3 {[%clk 0:00:02.9]} 44.
Qd3 {[%clk 0:00:10]} 44... c2 {[%clk 0:00:02.6]} 45. Rc1 {[%clk 0:00:10.4]}
45... Rb2 {[%clk 0:00:03.1]} 46. Nd4 {[%clk 0:00:09.5]} 46... Qb7+ {[%clk
0:00:03.1]} 47. Kh2 {[%clk 0:00:09.6]} 47... Rb1 {[%clk 0:00:02.5]} 48. Qxc2
{[%clk 0:00:08.6]} 48... Rb2 {[%clk 0:00:02.8]} 49. Qd3 {[%clk 0:00:07.7]} 49...
Rxf2+ {[%clk 0:00:03]} 0-1

[Event "Late-Titled-Tuesday-Blitz-October-17-2023"]
[Site "Chess.com"]
[Date "2023.10.17"]
[Round "5"]
[White "MikaelyanArman"]
[Black "DryCounty"]
[Result "1-0"]
[WhiteElo "2890"]
[BlackElo "2659"]
[TimeControl "180+1"]
[EndTime "14:55:38 PDT"]
[Termination "MikaelyanArman won by resignation"]

1. d4 {[%clk 0:03:00.9]} 1... Nf6 {[%clk 0:02:58.6]} 2. c4 {[%clk 0:03:01.2]}
2... g6 {[%clk 0:02:56.7]} 3. Nc3 {[%clk 0:03:01.3]} 3... Bg7 {[%clk 0:02:56.9]}
4. e4 {[%clk 0:03:01.4]} 4... O-O {[%clk 0:02:56.8]} 5. f4 {[%clk 0:03:01.5]}
5... d6 {[%clk 0:02:57]} 6. Nf3 {[%clk 0:03:01.8]} 6... a6 {[%clk 0:02:55.1]} 7.
e5 {[%clk 0:03:01.4]} 7... Ne8 {[%clk 0:02:52.7]} 8. Be3 {[%clk 0:02:24.1]} 8...
Bg4 {[%clk 0:02:36]} 9. h3 {[%clk 0:02:14.4]} 9... Bxf3 {[%clk 0:02:35.3]} 10.
Qxf3 {[%clk 0:02:15.3]} 10... c5 {[%clk 0:02:30.3]} 11. dxc5 {[%clk 0:02:03.8]}
11... Nc6 {[%clk 0:02:27.8]} 12. O-O-O {[%clk 0:01:59.3]} 12... Qa5 {[%clk
0:02:22.9]} 13. cxd6 {[%clk 0:01:55.8]} 13... exd6 {[%clk 0:02:21.2]} 14. Kb1
{[%clk 0:01:35.8]} 14... dxe5 {[%clk 0:02:16.8]} 15. f5 {[%clk 0:01:19.3]} 15...
e4 {[%clk 0:02:13.6]} 16. Nxe4 {[%clk 0:01:14.7]} 16... Qe5 {[%clk 0:01:53.2]}
17. Nc3 {[%clk 0:01:11.6]} 17... Qa5 {[%clk 0:01:32.2]} 18. Nd5 {[%clk
0:01:07.9]} 18... Nb4 {[%clk 0:01:16.5]} 19. a3 {[%clk 0:01:07.5]} 19... Nxd5
{[%clk 0:01:15.8]} 20. Rxd5 {[%clk 0:00:58.9]} 20... Qc7 {[%clk 0:01:09.1]} 21.
Bc5 {[%clk 0:00:52.2]} 21... Nf6 {[%clk 0:01:03.6]} 22. Bxf8 {[%clk 0:00:52.2]}
22... Rxf8 {[%clk 0:00:58.6]} 23. Rd1 {[%clk 0:00:51.3]} 23... Qb6 {[%clk
0:00:53.6]} 24. c5 {[%clk 0:00:41.1]} 24... Qxc5 {[%clk 0:00:50.7]} 25. Bd3
{[%clk 0:00:41.4]} 25... Qb6 {[%clk 0:00:48.5]} 26. Rd2 {[%clk 0:00:23.2]} 26...
Nd7 {[%clk 0:00:40.8]} 27. fxg6 {[%clk 0:00:21.1]} 27... hxg6 {[%clk 0:00:38.6]}
28. Rc1 {[%clk 0:00:20.5]} 28... Bh6 {[%clk 0:00:29.3]} 29. Rdc2 {[%clk
0:00:14.1]} 29... Bxc1 {[%clk 0:00:28.7]} 30. Rxc1 {[%clk 0:00:15]} 30... Ne5
{[%clk 0:00:28.3]} 31. Qe4 {[%clk 0:00:15.3]} 31... Nxd3 {[%clk 0:00:23.1]} 32.
Qxd3 {[%clk 0:00:16.2]} 32... Rd8 {[%clk 0:00:22.3]} 33. Qc3 {[%clk 0:00:15.5]}
33... Qd4 {[%clk 0:00:21.1]} 34. Qxd4 {[%clk 0:00:14]} 34... Rxd4 {[%clk
0:00:20.9]} 35. Rc7 {[%clk 0:00:14.9]} 35... b5 {[%clk 0:00:20.2]} 36. Rc6
{[%clk 0:00:14.5]} 36... Rd2 {[%clk 0:00:19.4]} 37. Rxa6 {[%clk 0:00:14.1]}
37... Rxg2 {[%clk 0:00:19.1]} 38. Rb6 {[%clk 0:00:14.8]} 38... Rg5 {[%clk
0:00:17.5]} 39. Kc2 {[%clk 0:00:14.9]} 39... Rh5 {[%clk 0:00:17.6]} 40. Kb3
{[%clk 0:00:08.7]} 40... Rxh3+ {[%clk 0:00:16.3]} 41. Kb4 {[%clk 0:00:09.3]}
41... Rh2 {[%clk 0:00:16.3]} 42. b3 {[%clk 0:00:09.3]} 42... g5 {[%clk
0:00:16.2]} 43. Rxb5 {[%clk 0:00:09.8]} 43... f6 {[%clk 0:00:12.7]} 44. a4
{[%clk 0:00:10.4]} 44... g4 {[%clk 0:00:10.8]} 45. Rf5 {[%clk 0:00:10.3]} 45...
Kf7 {[%clk 0:00:06]} 46. a5 {[%clk 0:00:07.6]} 46... Kg6 {[%clk 0:00:05.2]} 47.
Rf1 {[%clk 0:00:05.9]} 47... Ra2 {[%clk 0:00:05]} 48. Kb5 {[%clk 0:00:05.5]}
48... f5 {[%clk 0:00:05.2]} 49. b4 {[%clk 0:00:05.6]} 49... g3 {[%clk
0:00:05.4]} 50. Ka6 {[%clk 0:00:05.8]} 50... Kg5 {[%clk 0:00:03.9]} 51. b5
{[%clk 0:00:05.6]} 51... f4 {[%clk 0:00:04]} 52. b6 {[%clk 0:00:06.1]} 52... g2
{[%clk 0:00:04.4]} 53. Rb1 {[%clk 0:00:04.5]} 53... f3 {[%clk 0:00:04.5]} 54. b7
{[%clk 0:00:05.1]} 54... Rb2 {[%clk 0:00:04]} 55. Rxb2 {[%clk 0:00:05.5]} 55...
g1=Q {[%clk 0:00:04.4]} 56. b8=Q {[%clk 0:00:06.1]} 56... Qf1+ {[%clk
0:00:04.8]} 57. Qb5+ {[%clk 0:00:06.4]} 1-0

[Event "Late-Titled-Tuesday-Blitz-October-17-2023"]
[Site "Chess.com"]
[Date "2023.10.17"]
[Round "5"]
[White "SEBAZZANO"]
[Black "Mikhal867"]
[Result "1/2-1/2"]
[WhiteElo "2276"]
[BlackElo "2432"]
[TimeControl "180+1"]
[EndTime "14:55:40 PDT"]
[Termination "Game drawn by stalemate"]

1. d4 {[%clk 0:02:58.7]} 1... Nf6 {[%clk 0:02:58.8]} 2. Bf4 {[%clk 0:02:58.3]}
2... c5 {[%clk 0:02:57.8]} 3. e3 {[%clk 0:02:57.9]} 3... g6 {[%clk 0:02:55.9]}
4. Nf3 {[%clk 0:02:57.5]} 4... Bg7 {[%clk 0:02:56.1]} 5. c3 {[%clk 0:02:57.4]}
5... O-O {[%clk 0:02:56.6]} 6. h3 {[%clk 0:02:57.4]} 6... b6 {[%clk 0:02:54.3]}
7. Nbd2 {[%clk 0:02:56.9]} 7... Bb7 {[%clk 0:02:54.5]} 8. Be2 {[%clk 0:02:52]}
8... d6 {[%clk 0:02:53.6]} 9. O-O {[%clk 0:02:51.3]} 9... Nc6 {[%clk 0:02:53.2]}
10. Re1 {[%clk 0:02:50.9]} 10... Re8 {[%clk 0:02:48.1]} 11. Rc1 {[%clk
0:02:41.8]} 11... e5 {[%clk 0:02:47.7]} 12. dxe5 {[%clk 0:02:38.6]} 12... dxe5
{[%clk 0:02:47.8]} 13. Bh2 {[%clk 0:02:38.3]} 13... e4 {[%clk 0:02:43.9]} 14.
Nh4 {[%clk 0:02:30.5]} 14... Bc8 {[%clk 0:02:29.3]} 15. Nc4 {[%clk 0:02:20.7]}
15... g5 {[%clk 0:02:27.2]} 16. Qa4 {[%clk 0:01:58.6]} 16... Ne7 {[%clk
0:02:07.2]} 17. Rcd1 {[%clk 0:01:39.3]} 17... Bd7 {[%clk 0:01:49.1]} 18. Qa6
{[%clk 0:01:16]} 18... gxh4 {[%clk 0:01:46.1]} 19. Ne5 {[%clk 0:01:09.3]} 19...
Qc8 {[%clk 0:01:35.2]} 20. Nxd7 {[%clk 0:01:08.9]} 20... Qxa6 {[%clk 0:01:22]}
21. Nxf6+ {[%clk 0:01:01.5]} 21... Bxf6 {[%clk 0:01:22.2]} 22. Bxa6 {[%clk
0:01:02.4]} 22... Red8 {[%clk 0:01:22.5]} 23. Bb7 {[%clk 0:00:56.5]} 23... Rab8
{[%clk 0:01:21.9]} 24. Bxb8 {[%clk 0:00:55.6]} 24... Rxb8 {[%clk 0:01:20.1]} 25.
Bxe4 {[%clk 0:00:55.1]} 25... b5 {[%clk 0:01:15.2]} 26. Rd6 {[%clk 0:00:53.2]}
26... Kg7 {[%clk 0:01:14.6]} 27. Rd7 {[%clk 0:00:42.4]} 27... a5 {[%clk
0:01:13]} 28. Rb7 {[%clk 0:00:40.2]} 28... Rd8 {[%clk 0:01:10.3]} 29. Rxb5
{[%clk 0:00:38.4]} 29... Rd2 {[%clk 0:01:10.1]} 30. Rxc5 {[%clk 0:00:23.9]}
30... Rxb2 {[%clk 0:01:09.1]} 31. Rxa5 {[%clk 0:00:22.7]} 31... Bxc3 {[%clk
0:01:08.4]} 32. Ra7 {[%clk 0:00:22]} 32... Bxe1 {[%clk 0:01:02.5]} 33. Rxe7
{[%clk 0:00:22.3]} 33... Bxf2+ {[%clk 0:01:01.9]} 34. Kf1 {[%clk 0:00:21.4]}
34... Bg3 {[%clk 0:00:43.7]} 35. Bd5 {[%clk 0:00:19]} 35... Rf2+ {[%clk
0:00:43.4]} 36. Kg1 {[%clk 0:00:14.7]} 36... Kf8 {[%clk 0:00:43.2]} 37. Rxf7+
{[%clk 0:00:10.9]} 37... Rxf7 {[%clk 0:00:41.9]} 38. Bxf7 {[%clk 0:00:11.8]}
38... Kxf7 {[%clk 0:00:42.1]} 39. a4 {[%clk 0:00:12.3]} 39... Ke6 {[%clk
0:00:41.1]} 40. Kf1 {[%clk 0:00:13.2]} 40... Kd5 {[%clk 0:00:39.9]} 41. Ke2
{[%clk 0:00:14.1]} 41... Ke4 {[%clk 0:00:37.3]} 42. a5 {[%clk 0:00:13.7]} 42...
Bb8 {[%clk 0:00:36.9]} 43. a6 {[%clk 0:00:13.5]} 43... Ba7 {[%clk 0:00:37.2]}
44. Kf2 {[%clk 0:00:09.8]} 44... Bxe3+ {[%clk 0:00:35.7]} 45. Ke2 {[%clk
0:00:10.7]} 45... Ba7 {[%clk 0:00:35.5]} 46. Kf1 {[%clk 0:00:10.2]} 46... Kd3
{[%clk 0:00:33.7]} 47. Ke1 {[%clk 0:00:07.7]} 47... Ke3 {[%clk 0:00:33.1]} 48.
Kf1 {[%clk 0:00:07.7]} 48... Kd2 {[%clk 0:00:33.3]} 49. g3 {[%clk 0:00:07.7]}
49... Ke3 {[%clk 0:00:11.3]} 50. Kg2 {[%clk 0:00:08.6]} 50... h5 {[%clk
0:00:09]} 51. gxh4 {[%clk 0:00:07.9]} 51... Kf4 {[%clk 0:00:08.6]} 52. Kh2
{[%clk 0:00:07.8]} 52... Kf3 {[%clk 0:00:08.9]} 53. Kh1 {[%clk 0:00:07.5]} 53...
Kg3 {[%clk 0:00:08.7]} 1/2-1/2

[Event "Late-Titled-Tuesday-Blitz-October-17-2023"]
[Site "Chess.com"]
[Date "2023.10.17"]
[Round "5"]
[White "frederiksvane"]
[Black "AlexPapasimakopoulos"]
[Result "1-0"]
[WhiteElo "2884"]
[BlackElo "2687"]
[TimeControl "180+1"]
[EndTime "14:55:41 PDT"]
[Termination "frederiksvane won by checkmate"]

1. d4 {[%clk 0:03:00.9]} 1... d5 {[%clk 0:02:56]} 2. Nf3 {[%clk 0:03:01.3]} 2...
e6 {[%clk 0:02:53.7]} 3. e3 {[%clk 0:02:58.9]} 3... f5 {[%clk 0:02:49.7]} 4. c4
{[%clk 0:02:56.4]} 4... c6 {[%clk 0:02:49.3]} 5. Bd3 {[%clk 0:02:56.8]} 5... Nf6
{[%clk 0:02:49.7]} 6. O-O {[%clk 0:02:57.4]} 6... Bd6 {[%clk 0:02:50.2]} 7. b3
{[%clk 0:02:58]} 7... Qe7 {[%clk 0:02:50.5]} 8. a4 {[%clk 0:02:58.1]} 8... a5
{[%clk 0:02:47.2]} 9. Ba3 {[%clk 0:02:58.4]} 9... Na6 {[%clk 0:02:38.6]} 10.
Bxd6 {[%clk 0:02:57.8]} 10... Qxd6 {[%clk 0:02:36.5]} 11. Nc3 {[%clk 0:02:56.8]}
11... Nb4 {[%clk 0:02:36.2]} 12. Ne5 {[%clk 0:02:55.8]} 12... O-O {[%clk
0:02:33.8]} 13. Ne2 {[%clk 0:02:56.2]} 13... Nd7 {[%clk 0:02:30.2]} 14. Nf3
{[%clk 0:02:54]} 14... Nf6 {[%clk 0:02:23.8]} 15. Nf4 {[%clk 0:02:41.9]} 15...
Bd7 {[%clk 0:02:12.2]} 16. Ne5 {[%clk 0:02:41.2]} 16... Be8 {[%clk 0:02:10.1]}
17. cxd5 {[%clk 0:02:40.8]} 17... Nxd3 {[%clk 0:01:45.3]} 18. Qxd3 {[%clk
0:02:33.7]} 18... Nxd5 {[%clk 0:01:38.2]} 19. Nxd5 {[%clk 0:02:23.3]} 19... exd5
{[%clk 0:01:37.2]} 20. f4 {[%clk 0:02:20.6]} 20... Qb4 {[%clk 0:01:34.5]} 21.
Qc2 {[%clk 0:02:16.3]} 21... Rd8 {[%clk 0:01:30.6]} 22. Rac1 {[%clk 0:02:14.2]}
22... h6 {[%clk 0:01:14.2]} 23. Kh1 {[%clk 0:02:13.8]} 23... Rd6 {[%clk
0:01:10.4]} 24. h3 {[%clk 0:02:13]} 24... Rdf6 {[%clk 0:01:06.3]} 25. g4 {[%clk
0:02:09]} 25... fxg4 {[%clk 0:00:53.9]} 26. hxg4 {[%clk 0:02:09.9]} 26... Qd6
{[%clk 0:00:47.6]} 27. Qc5 {[%clk 0:02:01.5]} 27... Qd8 {[%clk 0:00:47.5]} 28.
Kg2 {[%clk 0:01:58.1]} 28... Bg6 {[%clk 0:00:45.6]} 29. f5 {[%clk 0:01:19.4]}
29... Bh7 {[%clk 0:00:24.7]} 30. b4 {[%clk 0:00:13.4]} 30... axb4 {[%clk
0:00:20.2]} 31. Qxb4 {[%clk 0:00:14.3]} 31... h5 {[%clk 0:00:20.2]} 32. Qxb7
{[%clk 0:00:12.8]} 32... hxg4 {[%clk 0:00:20.1]} 33. Rxc6 {[%clk 0:00:13]} 33...
Rxc6 {[%clk 0:00:17.2]} 34. Qxc6 {[%clk 0:00:12.5]} 34... Rf6 {[%clk 0:00:12.3]}
35. Qd7 {[%clk 0:00:07.7]} 35... Qa8 {[%clk 0:00:12.5]} 36. Kg3 {[%clk
0:00:05.1]} 36... Qb8 {[%clk 0:00:05.4]} 37. Qxd5+ {[%clk 0:00:05.2]} 37... Kh8
{[%clk 0:00:05.9]} 38. e4 {[%clk 0:00:04.9]} 38... Bg8 {[%clk 0:00:03]} 39. Qb5
{[%clk 0:00:04.6]} 39... Qc8 {[%clk 0:00:01.9]} 40. Rh1+ {[%clk 0:00:04.9]}
40... Rh6 {[%clk 0:00:02.6]} 41. Rxh6+ {[%clk 0:00:04.7]} 41... gxh6 {[%clk
0:00:03.5]} 42. Kxg4 {[%clk 0:00:03.5]} 42... Qc1 {[%clk 0:00:03.3]} 43. Nf3
{[%clk 0:00:03.8]} 43... Qe3 {[%clk 0:00:02.4]} 44. Qe5+ {[%clk 0:00:04.1]}
44... Kh7 {[%clk 0:00:02.1]} 45. Qe7+ {[%clk 0:00:04.5]} 45... Kh8 {[%clk
0:00:02.3]} 46. Qe5+ {[%clk 0:00:04.7]} 46... Kh7 {[%clk 0:00:02.6]} 47. Qf4
{[%clk 0:00:05.4]} 47... Qf2 {[%clk 0:00:02.9]} 48. Qg3 {[%clk 0:00:05]} 48...
Qe3 {[%clk 0:00:02.9]} 49. Qf4 {[%clk 0:00:04.1]} 49... Qf2 {[%clk 0:00:03.6]}
50. Ng5+ {[%clk 0:00:03.5]} 50... Kg7 {[%clk 0:00:02.1]} 51. Qxf2 {[%clk
0:00:02.3]} 51... Bb3 {[%clk 0:00:02.6]} 52. Qf4 {[%clk 0:00:02.5]} 52... Bd1+
{[%clk 0:00:02.9]} 53. Kg3 {[%clk 0:00:02.7]} 53... h5 {[%clk 0:00:03.8]} 54.
Qe5+ {[%clk 0:00:02.9]} 54... Kh6 {[%clk 0:00:04.2]} 55. Qf6# {[%clk 0:00:03.4]}
1-0